{"text_format":"1","workbook":"xlsx","n_sheets":3,"sheets":["Accueil","Questionnaire","Liste"],"not_rendered":{"charts":0,"images":2,"macros":1,"external_links":0,"defined_names":8,"comments":0,"pivot_tables":0},"unopened":[],"bounds":{"document_bytes":16777216,"sheet_cells":100000,"rows_first":2000,"rows_last":500,"rows_between":2000,"halvings":0,"cell_chars":16384,"cell_head_chars":4096},"cells_cut":0,"cells_raw":0,"read":"whole","date_system":"1900"}

{"sheet":"Accueil","index":0,"n_rows":12,"n_cols":8,"rows_kept":12,"cut":false,"hidden":false,"merged":[]}
[]
[]
[]
[]
[]
[]
[]
[]
[]
[]
[]
[null,null,null,null,null,null,null,"A remplir en premier"]

{"sheet":"Questionnaire","index":1,"n_rows":206,"n_cols":16,"rows_kept":206,"cut":false,"hidden":true,"merged":[[142,2,142,3],[143,2,143,3],[9,5,10,6],[9,4,10,4],[19,1,19,5],[118,2,118,5],[27,1,27,5],[40,0,40,1],[118,0,118,1],[103,1,103,3],[97,1,97,5],[91,1,91,3],[93,1,93,3],[95,1,95,3],[29,3,29,4],[14,1,14,5],[25,1,25,5],[16,1,16,5],[108,0,108,3],[35,1,35,2],[119,2,119,5],[182,5,183,5],[167,5,168,5],[150,0,150,5],[137,0,137,5],[140,4,140,5],[141,4,141,5],[142,4,142,5],[143,4,143,5],[148,1,148,5],[138,4,138,5],[138,2,138,3],[139,4,139,5],[144,4,144,5],[182,4,183,4],[146,1,146,5],[166,0,166,2],[154,2,154,3],[154,4,154,5],[144,2,144,3],[139,2,139,3],[140,2,140,3],[141,2,141,3],[81,1,81,3],[79,1,79,3],[112,0,112,3],[47,1,47,3],[51,1,51,3],[53,1,53,3],[99,3,99,4],[41,0,41,1],[42,0,42,1],[77,1,77,3],[0,0,0,6],[1,0,1,6],[4,0,4,6],[6,0,6,6],[8,0,8,6],[5,0,5,6],[2,0,2,6],[124,0,124,3],[135,1,135,5],[133,1,133,5],[125,1,125,5],[128,1,128,5],[127,1,127,5],[120,0,120,1],[113,0,113,6],[33,1,33,3],[120,2,120,5],[109,0,109,6],[117,0,117,1],[117,2,117,5],[17,1,17,5],[119,0,119,1],[85,1,85,3],[49,1,49,3],[185,0,185,2],[191,0,191,2],[193,1,193,2],[169,4,170,5],[179,4,180,5],[187,0,187,2],[178,0,178,2],[169,0,169,2],[121,0,121,1],[121,2,121,5],[134,1,134,5],[158,2,158,3],[158,4,158,5],[129,1,129,5],[155,2,155,3],[155,4,155,5],[156,2,156,3],[156,4,156,5],[157,2,157,3],[157,4,157,5],[152,2,152,3],[152,4,152,5],[153,2,153,3],[153,4,153,5]]}
["Appel à candidatures 2018"]
["Conférence des Financeurs du Pas de Calais"]
[]
[]
["Actions collectives de prévention de la perte d’autonomie"]
["SAAD"]
["Fiche projet"]
[]
["Date limite de dépôt des candidatures : 5 octobre 2018"]
[null,null,null,null,"N° de dossier \n(réservé au Conseil départemental)"]
[]
["1-   Identification du projet",null,null,null,null,null,null,{"$f":"A15","v":"Nom du projet : "},{"$f":"B15","v":0}]
[null,null,null,null,null,null,null,{"$f":"A17","v":"Thématique : choix 1"},{"$f":"B17","v":0}]
[null,null,null,null,null,null,null,{"$f":"A18","v":"Thématique : choix 2"},{"$f":"B18","v":0}]
["Nom du projet : ",null,null,null,null,null,null,"Statut de la demande",{"$f":"B20","v":"Sélectionnez"}]
[null,null,null,null,null,null,null,{"$f":"A26","v":"Nom de l’organisme:"},{"$f":"B26","v":0}]
["Thématique : choix 1",null,null,null,null,null,null,{"$f":"A28","v":"Adresse du Siège Social: "},{"$f":"B28","v":0}]
["Thématique : choix 2",null,null,null,null,null,null,{"$f":"A29","v":"B.P."},{"$f":"B29","v":0}]
[null,null,null,null,null,null,null,{"$f":"A30","v":"Code Postal :"},0]
["Statut de la demande","Sélectionnez",null,null,null,null,null,{"$f":"+C30","v":"Commune"},{"$f":"+D30","v":0}]
["2-   Identification de l’organisme à financer",null,null,null,null,null,null,{"$f":"A32","v":"Téléphone :"},{"$f":"B32","v":0}]
[null,null,null,null,null,null,null,{"$f":"+C32","v":"Fax :"},{"$f":"+D32","v":0}]
[null,null,null,null,null,null,null,{"$f":"A34","v":"E-mail :"},{"$f":"B34","v":0}]
["·         Renseignements administratifs",null,null,null,null,null,null,{"$f":"A36","v":"N° SIRET :"},{"$f":"B36","v":0}]
[null,null,null,null,null,null,null,{"$f":"+D36","v":"CODE APE  :"},{"$f":"+E36","v":0}]
["Nom de l’organisme:",null,null,null,null,null,null,{"$f":"A41","v":"- déclaration en Préfecture le :"},{"$f":"+C41","v":"00:00:00"}]
[null,null,null,null,null,null,null,{"$f":"A42","v":"- numéro d’enregistrement à la Préfecture :"},{"$f":"+C42","v":0}]
["Adresse du Siège Social: ",null,null,null,null,null,null,{"$f":"A43","v":"- date de publication au Journal Officiel :"},{"$f":"+C43","v":"00:00:00"}]
["B.P.",null,null,null,null,null,null,{"$f":"A48","v":"Statut de l’organisme :"},{"$f":"B48","v":0}]
["Code Postal :",null,"Commune",null,null,null,null,{"$f":"A50","v":"Objet social :"},{"$f":"B50","v":0}]
[null,null,null,null,null,null,null,{"$f":"A52","v":"Rayonnement géographique :"},{"$f":"B52","v":0}]
["Téléphone :",null,"Fax :",null,null,null,null,{"$f":"A54","v":"Missions / Prestations :"},{"$f":"B54","v":0}]
[null,null,null,null,null,null,null,{"$f":"A58","v":"·         Convention CARSAT ?"},{"$f":"B60","v":"Selectionnez"}]
["E-mail :",null,null,null,null,null,null,{"$f":"A66","v":"au titre de l'APA"},{"$f":"B66","v":0}]
[null,null,null,null,null,null,null,{"$f":"A68","v":"par les Caisses de retraite"},{"$f":"B68","v":0}]
["N° SIRET :",null,null,"CODE APE  :",null,null,null,{"$f":"A70","v":"Autres"},{"$f":"B70","v":0}]
[null,null,null,null,null,null,null,{"$f":"A78","v":"Nom :"},{"$f":"B78","v":0}]
[null,null,null,null,null,null,null,{"$f":"A80","v":"Prénom :"},{"$f":"B80","v":0}]
["Pour les associations :",null,null,null,null,null,null,{"$f":"A82","v":"Fonction :"},{"$f":"B82","v":0}]
[null,null,null,null,null,null,null,{"$f":"A84","v":"Téléphone :"},{"$f":"B84","v":0}]
["- déclaration en Préfecture le :",null,null,null,null,null,null,{"$f":"C84","v":"Fax:"},{"$f":"D84","v":0}]
["- numéro d’enregistrement à la Préfecture :",null,null,null,null,null,null,{"$f":"A86","v":"E-mail :"},{"$f":"B86","v":0}]
["- date de publication au Journal Officiel :",null,null,null,null,null,null,{"$f":"A92","v":"Nom :"},{"$f":"B92","v":0}]
[null,null,null,null,null,null,null,{"$f":"A94","v":"Prénom :"},{"$f":"B94","v":0}]
[null,null,null,null,null,null,null,{"$f":"A96","v":"Fonction :"},{"$f":"B96","v":0}]
["·         Renseignements techniques :",null,null,null,null,null,null,{"$f":"A98","v":"Adresse du Siège Social: "},0]
[null,null,null,null,null,null,null,"B.P.",0]
["Statut de l’organisme :",null,null,null,null,null,null,"Code Postal :",0]
[null,null,null,null,null,null,null,{"$f":"C100","v":"Commune :"},{"$f":"D100","v":0}]
["Objet social :",null,null,null,null,null,null,{"$f":"A102","v":"Téléphone :"},{"$f":"B102","v":0}]
[null,null,null,null,null,null,null,{"$f":"C102","v":"Fax :"},{"$f":"D102","v":0}]
["Rayonnement géographique :",null,null,null,null,null,null,{"$f":"A104","v":"E-mail :"},{"$f":"B104","v":0}]
[null,null,null,null,null,null,null,{"$f":"A108","v":"Diagnostic et historique du projet (identification des besoins, repérage des risques, définition des besoins et des attentes de la population)"},{"$f":"A110","v":0}]
["Missions / Prestations :",null,null,null,null,null,null,{"$f":"A112","v":"Objectifs du projet"},{"$f":"A114","v":0}]
[null,null,null,null,null,null,null,{"$f":"A118","v":"Qui sont-ils ?"},{"$f":"C118","v":0}]
[null,null,null,null,null,null,null,{"$f":"A119","v":"Nombre de bénéficiaires attendus"},{"$f":"C119","v":0}]
[null,null,null,null,null,null,null,{"$f":"A120","v":"Quel est leur profil ? (Autonome / En perte d’autonomie)"},0]
["·         Convention CARSAT ?",null,null,null,null,null,null,{"$f":"A121","v":"Comment sont-ils associés à votre projet ?"},0]
[null,null,null,null,null,null,null,{"$f":"A122","v":"Nombre approximatif de public proche aidants de 60 ans et plus"},{"$f":"C122","v":0}]
[null,"Selectionnez",null,null,null,null,null,{"$f":"A126","v":"Description des actions (ateliers, forums, réunions…)"},{"$f":"B126","v":0}]
[null,null,null,null,null,null,null,{"$f":"A128","v":"Contenu (thèmes abordés…)"},0]
[null,null,null,null,null,null,null,"Fréquence, rythme",0]
[null,null,null,null,null,null,null,{"$f":"A130","v":"Moyens humains mobilisés internes à la structure"},0]
["·         Nombre de bénéficiaires de 60 ans et plus, pris en charge par la structure au 1er janvier de l'année N",null,null,null,null,null,null,"Moyens humains mobilisés externes à la structure",0]
[null,null,null,null,null,null,null,"Moyens matériels",0]
["au titre de l'APA",null,null,null,null,null,null,{"$f":"A134","v":"(listez toutes les communes d'intervention)"},0]
[null,null,null,null,null,null,null,"Si cette action se déroule dans un quartier politique ville, précisez\nSinon, noter non",0]
["par les Caisses de retraite",null,null,null,null,null,null,"Calendrier de mise en place et suivi des actions\n(descriptif détaillé des étapes du projet)",0]
[null,null,null,null,null,null,null,{"$f":"A140","v":"Partenaire 1"},{"$f":"B140","v":0}]
["Autres",null,null,null,null,null,null,{"$f":"C$139","v":"Rôle dans le projet"},{"$f":"C140","v":0}]
[null,null,null,null,null,null,null,{"$f":"E$139","v":"Type de partenariat"},{"$f":"E140","v":"Selectionnez"}]
[null,null,null,null,null,null,null,{"$f":"A141","v":"Partenaire 2"},{"$f":"$B141","v":0}]
[null,null,null,null,null,null,null,{"$f":"C$139","v":"Rôle dans le projet"},{"$f":"$C141","v":0}]
[null,null,null,null,null,null,null,{"$f":"E$139","v":"Type de partenariat"},{"$f":"$E141","v":"Selectionnez"}]
["3-   Personne ayant qualité pour engager l’organisme dans le projet",null,null,null,null,null,null,{"$f":"A142","v":"Partenaire 3"},{"$f":"$B142","v":0}]
[null,null,null,null,null,null,null,{"$f":"C$139","v":"Rôle dans le projet"},{"$f":"$C142","v":0}]
[null,null,null,null,null,null,null,{"$f":"E$139","v":"Type de partenariat"},{"$f":"$E142","v":"Selectionnez"}]
["Nom :",null,null,null,null,null,null,{"$f":"A143","v":"Partenaire 4"},{"$f":"$B143","v":0}]
[null,null,null,null,null,null,null,{"$f":"C$139","v":"Rôle dans le projet"},{"$f":"$C143","v":0}]
["Prénom :",null,null,null,null,null,null,{"$f":"E$139","v":"Type de partenariat"},{"$f":"$E143","v":"Selectionnez"}]
[null,null,null,null,null,null,null,{"$f":"A144","v":"Partenaire 5"},{"$f":"$B144","v":0}]
["Fonction :",null,null,null,null,null,null,{"$f":"C$139","v":"Rôle dans le projet"},{"$f":"$C144","v":0}]
[null,null,null,null,null,null,null,{"$f":"E$139","v":"Type de partenariat"},{"$f":"$E144","v":"Selectionnez"}]
["Téléphone :",null,"Fax:",null,null,null,null,{"$f":"A145","v":"Autres partenaires"},{"$f":"B145","v":0}]
[null,null,null,null,null,null,null,{"$f":"C$139","v":"Rôle dans le projet"},{"$f":"$C145","v":0}]
["E-mail :",null,null,null,null,null,null,{"$f":"E$139","v":"Type de partenariat"},{"$f":"$E145","v":"Selectionnez"}]
[null,null,null,null,null,null,null,{"$f":"A147","v":"Un comité de pilotage a-t-il été constitué ? Si oui quelle est sa composition ?"},{"$f":"B147","v":0}]
[null,null,null,null,null,null,null,{"$f":"A149","v":"Outils de communication pour valoriser le projet"},{"$f":"B149","v":0}]
["4-   Identification de la personne chargée du projet",null,null,null,null,null,null,"Objectifs projet 1",{"$f":"A154","v":0}]
[null,null,null,null,null,null,null,"Indicateur d'évaluation 1",{"$f":"B154","v":0}]
[null,null,null,null,null,null,null,"Outils d'évluation 1",{"$f":"C154","v":0}]
["Nom :",null,null,null,null,null,null,"Résulats attendus 1",{"$f":"E154","v":0}]
[null,null,null,null,null,null,null,"Objectifs projet 2",{"$f":"A155","v":0}]
["Prénom :",null,null,null,null,null,null,"Indicateur d'évaluation 2",{"$f":"B155","v":0}]
[null,null,null,null,null,null,null,"Outils d'évluation 2",{"$f":"C155","v":0}]
["Fonction :",null,null,null,null,null,null,"Résulats attendus 2",{"$f":"E155","v":0}]
[null,null,null,null,null,null,null,"Objectifs projet 3",{"$f":"A156","v":0}]
["Adresse du Siège Social: ",null,null,null,null,null,null,"Indicateur d'évaluation 3",{"$f":"B156","v":0}]
["B.P.",null,null,null,null,null,null,"Outils d'évluation 3",{"$f":"C156","v":0}]
["Code Postal :",null,"Commune :",null,null,null,null,"Résulats attendus 3",{"$f":"E156","v":0}]
[null,null,null,null,null,null,null,"Objectifs projet 4",{"$f":"A157","v":0}]
["Téléphone :",null,"Fax :",null,null,null,null,"Indicateur d'évaluation 4",{"$f":"B157","v":0}]
[null,null,null,null,null,null,null,"Outils d'évluation 4",{"$f":"C157","v":0}]
["E-mail :",null,null,null,null,null,null,"Résulats attendus 4",{"$f":"E157","v":0}]
[null,null,null,null,null,null,null,"Objectifs projet 5",{"$f":"A158","v":0}]
["5-   Définition du projet ",null,null,null,null,null,null,"Indicateur d'évaluation 5",{"$f":"B158","v":0}]
["les 10000 caractères sont atteints",null,null,null,null,null,null,"Outils d'évluation 5",{"$f":"C158","v":0}]
["Diagnostic et historique du projet (identification des besoins, repérage des risques, définition des besoins et des attentes de la population)",null,null,null,null,null,null,"Résulats attendus 5",{"$f":"E158","v":0}]
[" (1000 caractères maximum) Une alerte est donnée quand les 1000 caractères sont atteints. \nDans la zone de saisie les retours à la ligne se font en appuyant simultanément sur les touches CTRL et Entrée",null,null,null,null,null,null,"Objectifs projet 6",{"$f":"A159","v":0}]
[null,null,null,null,null,null,null,"Indicateur d'évaluation 6",{"$f":"B159","v":0},null,null,null,null,null,null,{"$f":"LEN(A110)","v":0}]
["les 10000 caractères sont atteints",null,null,null,null,null,null,"Outils d'évluation 6",{"$f":"C159","v":0}]
["Objectifs du projet",null,null,null,null,null,null,"Résulats attendus 6",{"$f":"E159","v":0}]
[" (1000 caractères maximum) Une alerte est donnée quand les 1000 caractères sont atteints. \nDans la zone de saisie les retours à la ligne se font en appuyant simultanément sur les touches CTRL et Entrée"]
[null,null,null,null,null,null,null,{"$f":"A$168","v":"Fournitures d'atelier ou d'activités"},{"$f":"B$168","v":0},null,null,null,null,null,null,{"$f":"LEN(A114)","v":0}]
[null,null,null,null,null,null,null,{"$f":"A$168","v":"Fournitures d'atelier ou d'activités"},{"$f":"C$168","v":0}]
[null,null,null,null,null,null,null,{"$f":"A$169","v":"Autres (à préciser) "},{"$f":"B$169","v":0}]
["Les bénéficiaires de votre projet : ",null,null,null,null,null,null,{"$f":"A$169","v":"Autres (à préciser) "},{"$f":"C$169","v":0}]
["Qui sont-ils ?",null,null,null,null,null,null,{"$f":"A$171","v":"Sous-traitance générale"},{"$f":"B$171","v":0}]
["Nombre de bénéficiaires attendus",null,null,null,null,null,null,{"$f":"A$171","v":"Sous-traitance générale"},{"$f":"C$171","v":0}]
["Quel est leur profil ? (Autonome / En perte d’autonomie)",null,null,null,null,null,null,{"$f":"A$172","v":"Formation des bénévoles"},{"$f":"B$172","v":0}]
["Comment sont-ils associés à votre projet ?",null,null,null,null,null,null,{"$f":"A$172","v":"Formation des bénévoles"},{"$f":"C$172","v":0}]
["Nombre approximatif de public proche aidants de 60 ans et plus",null,null,null,null,null,null,{"$f":"A$173","v":"Locations immobilières et mobilières"},{"$f":"B$173","v":0}]
[null,null,null,null,null,null,null,{"$f":"A$173","v":"Locations immobilières et mobilières"},{"$f":"C$173","v":0}]
["Descriptif du projet : ",null,null,null,null,null,null,{"$f":"A$173","v":"Locations immobilières et mobilières"},{"$f":"B$173","v":0}]
[" (1000 caractères maximum) Une alerte est donnée quand les 1000 caractères sont atteints. \nDans la zone de saisie les retours à la ligne se font en appuyant simultanément sur les touches CTRL et Entrée",null,null,null,null,null,null,{"$f":"A$174","v":"Travaux d’entretien et de réparation"},{"$f":"B$174","v":0}]
["Description des actions (ateliers, forums, réunions…)",null,null,null,null,null,null,{"$f":"A$174","v":"Travaux d’entretien et de réparation"},{"$f":"C$174","v":0},null,null,null,null,null,null,{"$f":"LEN(B126)","v":0}]
[null,null,null,null,null,null,null,{"$f":"A$175","v":"Documentation"},{"$f":"B$175","v":0}]
["Contenu (thèmes abordés…)",null,null,null,null,null,null,{"$f":"A$175","v":"Documentation"},{"$f":"C$175","v":0},null,null,null,null,null,null,{"$f":"LEN(B128)","v":0}]
["Fréquence, rythme",null,null,null,null,null,null,{"$f":"A$176","v":"Assurances"},{"$f":"B$176","v":0}]
["Moyens humains mobilisés internes à la structure",null,null,null,null,null,null,{"$f":"A$176","v":"Assurances"},{"$f":"C$176","v":0}]
["Moyens humains mobilisés externes à la structure",null,null,null,null,null,null,{"$f":"A$177","v":"Études et recherches"},{"$f":"B$177","v":0}]
["Moyens matériels",null,null,null,null,null,null,{"$f":"A$177","v":"Études et recherches"},{"$f":"C$177","v":0}]
[null,null,null,null,null,null,null,{"$f":"A$178","v":"Autres (à préciser) "},{"$f":"B$178","v":0}]
["(listez toutes les communes d'intervention)",null,null,null,null,null,null,{"$f":"A$178","v":"Autres (à préciser) "},{"$f":"C$178","v":0}]
["Si cette action se déroule dans un quartier politique ville, précisez\nSinon, noter non",null,null,null,null,null,null,{"$f":"A$180","v":"Honoraires, rémunération d'intermédiaires"},{"$f":"B$180","v":0}]
["Calendrier de mise en place et suivi des actions\n(descriptif détaillé des étapes du projet)",null,null,null,null,null,null,{"$f":"A$180","v":"Honoraires, rémunération d'intermédiaires"},{"$f":"C$180","v":0}]
[null,null,null,null,null,null,null,{"$f":"A$181","v":"Publicités, publications"},{"$f":"B$181","v":0}]
["Pour cette action, quels sont vos partenaires acquis ou souhaités ?",null,null,null,null,null,null,{"$f":"A$181","v":"Publicités, publications"},{"$f":"C$181","v":0}]
[null,"Nom du partenaire \nStructure et fonction","Rôle dans le projet",null,"Type de partenariat",null,null,{"$f":"A$182","v":"Transports liés aux activités et aux animations"},{"$f":"B$182","v":0}]
["Partenaire 1",null,null,null,"Selectionnez",null,null,{"$f":"A$182","v":"Transports liés aux activités et aux animations"},{"$f":"C$182","v":0}]
["Partenaire 2",null,null,null,"Selectionnez",null,null,{"$f":"A$183","v":"Missions et réception"},{"$f":"B$183","v":0}]
["Partenaire 3",null,null,null,"Selectionnez",null,null,{"$f":"A$183","v":"Missions et réception"},{"$f":"C$183","v":0}]
["Partenaire 4",null,null,null,"Selectionnez",null,null,{"$f":"A$184","v":"Frais postaux et téléphone"},{"$f":"B$184","v":0}]
["Partenaire 5",null,null,null,"Selectionnez",null,null,{"$f":"A$184","v":"Frais postaux et téléphone"},{"$f":"C$184","v":0}]
["Autres partenaires",null,null,null,"Selectionnez",null,null,{"$f":"A$185","v":"Autres (à préciser)"},{"$f":"B$185","v":0}]
[null,null,null,null,null,null,null,{"$f":"A$185","v":"Autres (à préciser)"},{"$f":"C$185","v":0}]
["Un comité de pilotage a-t-il été constitué ? Si oui quelle est sa composition ?",null,null,null,null,null,null,{"$f":"A$187","v":"Impôts et taxes"},{"$f":"B$187","v":0}]
[null,null,null,null,null,null,null,{"$f":"A$187","v":"Impôts et taxes"},{"$f":"C$187","v":0}]
["Outils de communication pour valoriser le projet",null,null,null,null,null,null,{"$f":"A$189","v":"Salaires bruts (affectés au projet)"},{"$f":"B$189","v":0}]
[null,null,null,null,null,null,null,{"$f":"A$189","v":"Salaires bruts (affectés au projet)"},{"$f":"C$189","v":0}]
["Pour cette action, quel suivi et quelle évaluation avez-vous prévus ?",null,null,null,null,null,null,{"$f":"A$190","v":"Charges sociales de l'employeur"},{"$f":"B$190","v":0}]
[null,null,null,null,null,null,null,{"$f":"A$190","v":"Charges sociales de l'employeur"},{"$f":"C$190","v":0}]
["Objectifs du projet \n(détailler chacun des dispositifs présentés plus haut)","Indicateurs utilisés \n(quantitatifs et qualitatifs)","Outils d'évaluation\n(ex: questionnaire, quizz, tableaux de bord…)",null,"Résulats attendus\n(pourcentage d'atteinte des objectifs, taux de participation…)",null,null,{"$f":"A$191","v":"Autres (à préciser) "},{"$f":"B$191","v":0}]
[null,null,null,null,null,null,null,{"$f":"A$191","v":"Autres (à préciser) "},{"$f":"C$191","v":0}]
[null,null,null,null,null,null,null,{"$f":"A$193","v":"Autres charges de gestion courante"},{"$f":"B$192","v":0}]
[null,null,null,null,null,null,null,{"$f":"A193","v":"Autres charges de gestion courante"},{"$f":"C$193","v":0}]
[null,null,null,null,null,null,null,{"$f":"A194","v":"Total Général*"},{"$f":"B$194","v":0}]
[null,null,null,null,null,null,null,{"$f":"A198","v":"Auto financements"},0]
[null,null,null,null,null,null,null,"Autres",0]
[null,null,null,null,null,null,null,"Coût global",0]
["6-   Financement du projet",null,null,null,null,null,null,{"$f":"E167","v":"Conférence des financeurs"},{"$f":"F167","v":0}]
[null,null,null,null,null,null,null,{"$f":"E168","v":"Fonds Européens"},{"$f":"F168","v":0}]
["Ce projet a-t-il bénéficié de financements ? Si oui, lesquels ?",null,null,null,null,null,null,"Fonds Européens Détail",{"$f":"E170","v":0}]
[null,null,null,null,null,null,null,{"$f":"E172","v":"Etat "},{"$f":"F172","v":0}]
["Détailler au maximum chaque poste renseigné (nombre d’heures, nature des achats…) et joindre les devis",null,null,null,null,null,null,{"$f":"E173","v":"Région "},{"$f":"F173","v":0}]
["Dépenses liées au projet","détail (nature et quantité)","TTC en euros",null,"Recettes prévisionnelles","TTC en euros",null,"Département",0]
["60 - Achats",null,null,null,"Conférence des financeurs",null,null,"EPCI",0]
["Fournitures d'atelier ou d'activités",null,null,null,"Fonds Européens",null,null,"Commune",0]
["Autres (à préciser) ",null,null,null,"(À préciser dans la case en dessous)",null,null,{"$f":"E177","v":"Politique ville"},{"$f":"F177","v":0}]
["61 – Services externes",null,null,null,null,null,null,{"$f":"E178","v":"Autofinancement"},0]
["Sous-traitance générale",null,null,null,null,null,null,{"$f":"E179","v":" Autres (À préciser dans la case en dessous)"},{"$f":"F179","v":0}]
["Formation des bénévoles",null,null,null,"Etat ",null,null,"Autres Précisions",{"$f":"E180","v":0}]
["Locations immobilières et mobilières",null,null,null,"Région ",null,null,{"$f":"E182","v":"Cotisation des Adhérents"},{"$f":"F182","v":0}]
["Travaux d’entretien et de réparation",null,null,null,"Département",null,null,{"$f":"E183","v":"Total Général*"},{"$f":"F183","v":0}]
["Documentation",null,null,null,"EPCI"]
["Assurances",null,null,null,"Commune"]
["Études et recherches",null,null,null,"Politique ville"]
["Autres (à préciser) ",null,null,null,"Autofinancement"]
["62 - Autres services externes",null,null,null," Autres (À préciser dans la case en dessous)"]
["Honoraires, rémunération d'intermédiaires"]
["Publicités, publications"]
["Transports liés aux activités et aux animations",null,null,null,"Cotisation des Adhérents"]
["Missions et réception",null,null,null,"Total Général*"]
["Frais postaux et téléphone"]
["Autres (à préciser)"]
[" 63 - Impôts et taxes"]
["Impôts et taxes"]
["64 – Frais de personnel liés à l'action"]
["Salaires bruts (affectés au projet)",null,null,null,"TOTAL DEPENSES","TOTAL RECETTES"]
["Charges sociales de l'employeur",null,null,null,{"$f":"+B194","v":0},{"$f":"+F183","v":0}]
["Autres (à préciser) "]
["65 - Autres charges de gestion courante"]
["Autres charges de gestion courante"]
["Total Général*",{"$f":"SUM(C167:C193)","v":0}]
["*Ces deux totaux doivent être égaux"]
[]
[null,"Année N-1"]
["Auto financements",null,null,"Cachet"]
["Autres"]
["Coût global"]
[]
["Date et signature"]
[]
[]
[]
["Veuillez vous reporter au cahier des charges pour prendre connaissance des dépenses non éligibles"]

{"sheet":"Liste","index":2,"n_rows":35,"n_cols":6,"rows_kept":35,"cut":false,"hidden":true,"merged":[]}
[null,"Financeurs","Thématiques_projets","Thématiques","EPCI 2014"]
[null,"Selectionnez","Selectionnez","Selectionnez","CA de Béthune Bruay Noeux et Environs","Si vous rajouter des éléments faites le en milieu de liste"]
[null,"AGIRC-ARRCO","Favoriser une alimentation saine et prévenir la dénutrition","Accès aux droits","CA de Lens - Liévin"]
[null,"Anah","Encourager la pratique d’une activité physique adaptée","Activités physiques/Ateliers équilibre/Prévention des chutes","CA de Saint Omer"]
[null,"ARS","Prévenir les chutes et améliorer l’équilibre","Autres actions collectives","CA d'hénin-Carvin"]
[null,"CARSAT","Stimuler la mémoire","Bien-être et estime de soi","CA du Boulonnais"]
[null,"CCAS Communes","Promouvoir un sommeil de qualité","Formation aidants","CA du Calaisis"]
[null,"Conseil départemental ","Développer le bien être et l’estime de soi ","Habitat et cadre de vie","CC Artois Flandres"]
[null,"CPAM","Aménager le cadre de vie afin de préserver son autonomie","Information aidants","CC Artois Lys"]
[null,"EPCI","Informer sur l’accès aux droits et aux nouvelles technologies","Intergénérationnel","CC de Desvres-Samer"]
[null,"MSA","Prendre la route en toute sécurité","Mémoire","CC de la Morinie"]
[null,"Mutualité Française",null,"Multithématiques","CC de la Région d'Audruicq"]
[null,"RSI",null,"Nutrition","CC de la Région de Frévent"]
[null,null,null,"Préparation à la retraite","CC de la Terre des Deux Caps"]
[null,null,null,"Prévention santé aidants ","CC de l'Atrébatie"]
[null,null,null,"Sécurité routière","CC de l'Auxilois"]
[null,null,null,"Sommeil","CC des 2 Sources"]
[null,null,null,"Soutien social et/ou moral aidants","CC des 7 Vallées"]
[null,null,null,"Vie sociale/lutte isolement","CC des Trois Pays"]
[null,null,null,null,"CC du Canton de Fauquembergues"]
[null,null,null,null,"CC du Canton de Fruges"]
[null,null,null,null,"CC du Canton d'hucqueliers et Environs"]
[null,null,null,null,"CC du Montreuillois"]
[null,null,null,null,"CC du Pays d'Aire"]
[null,null,null,null,"CC du Pays de Lumbres"]
[null,null,null,null,"CC du Pernois"]
[null,null,null,null,"CC du Sud Ouest du Calaisis"]
[null,null,null,null,"CC du Sud-Artois"]
[null,null,null,null,"CC Flandre Lys"]
[null,null,null,null,"CC la Porte des Vallées"]
[null,null,null,null,"CC les Vertes Collines du Saint-Polois"]
[null,null,null,null,"CC Mer et Terres d'Opale"]
[null,null,null,null,"CC Opale Sud"]
[null,null,null,null,"CC Osartis Marquion"]
[null,null,null,null,"CU d'Arras"]